Cogmind - Beta 16 @@@ ROGUE MODE // 2025.11.16 @ 15:54:26 Player: BlobtheGreat Result: Destroyed by Cetus Guard with Advanced KE Penetrator Performance ------------- Evolutions (6) 3000 Regions Visited (13) 2600 Robots Destroyed (60) 300 Value Destroyed (1572) 1572 Prototype IDs (36) 720 Alien Tech Used (2) 400 Bonus (1806) 1806 TOTAL SCORE: 10398 Bonus ------- High Alert Combat Kills 6 Follower Combat Kills 1012 Registered with UFD 300 Met Optimus in HQ 500 Met Zhirov 300 Friendly Fire -312 Cogmind --------- Core Integrity 0/1150 Matter 250/300 Energy 85/100 System Corruption 5% Temperature Cool (0) Movement Core (200) Ox3 Location -4/Cetus Parts ------- > --- POWER (2) -------- (None) > --- PROPULSION (6) --- (None) > --- UTILITY (9) ------ Advanced Signal Interpreter Quantum Capacitor Hacking Suite Hacking Suite Improved System Shield > --- WEAPON (2) ------- Railgun > --- INVENTORY (5) ---- Heavy Antimatter Reactor Deep Structural Scanner Enhanced Scrap Shield Phasing Sabre Peak State ------------ > --- POWER ------------ Micro Fission Core Heavy Antimatter Reactor > --- PROPULSION ------- Improved Flight Unit Improved Flight Unit Nuclear Pulse Array Nuclear Pulse Array > --- UTILITY ---------- Medium Storage Unit Advanced Sensor Array Advanced Signal Interpreter Enhanced Scrap Shield Hacking Suite Hacking Suite Improved Hacking Suite Improved System Shield > --- WEAPON ----------- Improved Plasma Cutter Phasing Sabre > --- INVENTORY -------- Cooled Cesium-ion Thruster Cooled Cesium-ion Thruster Deep Structural Scanner Authchip [Processor] A0-MCA's Component Scanner Transdimensional Reconstructor Smartbomb Launcher [Rating: 100] Favorites ----------- Power Micro Fission Core Engine Subdweller Power Source Power Core Micro Fission Core Reactor Heavy Antimatter Reactor Propulsion Light Treads Treads Light Treads Wheel Subdweller Monowheel Hover Unit Cooled Gravmag System Flight Unit Improved Flight Unit Utility Hacking Suite Device Advanced Sensor Array Storage Large Storage Unit Processor Advanced Signal Interpreter Hackware Hacking Suite Protection Light Armor Plating Weapon Subdweller Beam Cannon Energy Gun Subdweller Laser Energy Cannon Subdweller Beam Cannon Ballistic Gun Subdweller Machine Gun Ballistic Cannon Bore Cannon Launcher Smartbomb Launcher Special Weapon Improved Plasma Cutter Slashing Weapon Greatsword Piercing Weapon Lance Build | -11 -10 -10 -7 -5 -5 -5 -5 -5 -5 -4 -4 -4 -4 ------- Run | Yrd Mat Sub Scr Fac Was Fac Upp Upp Zhi Pro Fac Ext Cet Slots Evolved 12 | . . . . 10 . . . . . . 2 . . Power 1 | . . . . 1 . . . . . . . . . Propulsion 4 | . . . . 4 . . . . . . . . . Utility 7 | . . . . 5 . . . . . . 2 . . Weapon . | . . . . . . . . . . . . . . Parts Attached 75 | 8 4 15 6 19 . 8 3 . 2 . 3 7 . Power 10 | 2 . 2 . 3 . . 1 . 1 . . 1 . Engine 4 | 2 . 2 . . . . . . . . . . . Core 5 | . . . . 3 . . 1 . . . . 1 . Reactor 1 | . . . . . . . . . 1 . . . . Propulsion 14 | 2 1 3 2 3 . 2 . . 1 . . . . Treads 4 | 2 . 2 . . . . . . . . . . . Leg . | . . . . . . . . . . . . . . Wheel 1 | . . 1 . . . . . . . . . . . Hover 1 | . . . . 1 . . . . . . . . . Flight 8 | . 1 . 2 2 . 2 . . 1 . . . . Utility 29 | 2 1 3 2 10 . 3 1 . . . 3 4 . Device 6 | 1 . . . 2 . . 1 . . . . 2 . Storage 3 | 1 1 . 1 . . . . . . . . . . Processor 4 | . . . . 4 . . . . . . . . . Hackware 10 | . . . 1 3 . 3 . . . . 2 1 . Protection 6 | . . 3 . 1 . . . . . . 1 1 . Artifact . | . . . . . . . . . . . . . . Weapon 22 | 2 2 7 2 3 . 3 1 . . . . 2 . Energy Gun 3 | 1 . 2 . . . . . . . . . . . Energy Cannon 3 | . . 3 . . . . . . . . . . . Ballistic Gun 7 | 1 2 2 . 1 . . . . . . . 1 . Ballistic Cannon 1 | . . . . . . . . . . . . 1 . Launcher 2 | . . . . 1 . 1 . . . . . . . Special Weapon 2 | . . . 1 . . 1 . . . . . . . Impact Weapon . | . . . . . . . . . . . . . . Slashing Weapon 3 | . . . 1 1 . . 1 . . . . . . Piercing Weapon 1 | . . . . . . 1 . . . . . . . Special Melee Weapon . | . . . . . . . . . . . . . . Unidentified Prototypes 9 | . 1 . . 4 . . . . 2 . 1 1 . Parts Lost 26 | . . 5 . . . 3 1 . . . 3 14 . Power 5 | . . 2 . . . . 1 . . . . 2 . Propulsion 9 | . . 1 . . . 2 . . . . 1 5 . Utility 8 | . . 2 . . . . . . . . 1 5 . Weapon 4 | . . . . . . 1 . . . . 1 2 . Highest Loss Streak 10 | . . 3 . . . 3 1 . . . 2 10 . To Critical Strikes 1 | . . 1 . . . . . . . . . . . Average Backups 11 | 5 13 14 12 8 9 8 7 6 7 8 7 7 4 Power . | . 1 . . . 1 1 . . . . . 1 1 Propulsion 3 | 3 5 5 3 . . . 1 1 1 2 1 . . Utility 4 | . 3 5 5 4 5 4 4 4 4 4 3 4 2 Weapon 2 | . 3 3 2 1 2 1 1 1 1 1 1 1 1 Tool/Special . | . . . . . . . . . . . . . . Unused Backups 20 | . 8 3 5 1 . 1 . . . . . 1 1 Power . | . . . . . . . . . . . . . . Propulsion 4 | . 4 . . . . . . . . . . . . Utility 8 | . . 1 3 1 . 1 . . . . . 1 1 Weapon 8 | . 4 2 2 . . . . . . . . . . Tool/Special . | . . . . . . . . . . . . . . Average Slot Usage (%) 92 | . 99 98 95 84 88 88 87 94 87 88 77 74 31 Engine 9 | . 14 13 13 . . . . . . . . . . Core 2 | . . . . 9 11 10 9 11 9 5 4 6 . Treads 14 | . 28 26 11 . . . . . . . . . . Wheel 3 | . . 1 10 . . . . . . . . . . Flight 9 | . . . 4 28 29 29 29 29 27 23 21 23 . Device 3 | . 14 2 . 4 5 5 5 5 5 5 5 . 5 Storage 10 | . 14 14 12 5 5 5 5 5 5 5 5 4 . Processor 1 | . . . . 6 5 5 5 5 5 5 5 5 5 Hackware 7 | . . . 2 15 17 22 23 23 23 23 23 27 15 Protection 6 | . . 10 11 3 5 . . . . . . . . Energy Gun 4 | . 11 8 . . . . . . . . . . . Energy Cannon 6 | . . 11 10 . . . . . . . . . . Ballistic Gun 7 | . 15 7 12 . . . . . . . . . 5 Slashing Weapon 1 | . . . 2 4 5 3 1 5 5 5 4 2 . Peak Build Rating 100 | 7 11 18 22 75 75 87 88 87 89 89 100 88 40 Average Rating 34 | 6 9 13 17 67 75 78 85 87 82 89 86 74 40 On Entrance 54 | . 7 11 18 20 75 75 87 87 87 89 89 77 40 Avg Prop Armor Cover (%) 8 | . . 12 6 . . 7 . . . . 10 13 . Naked Turns 73 | . . . 73 . . . . . . . . . . Heaviest Build 54 | 13 30 45 41 32 32 33 35 30 40 40 54 37 11 Greatest Support 43 | 40 40 40 20 35 35 43 43 37 40 40 40 43 3 Greatest Overweight (x) 10 | . . 2 9 . . 1 . . . . 1 10 3 Average Overweight (x) . | . . . 1 . . . . . . . . . 3 Largest Inventory Capacity 15 | 8 15 15 15 10 10 10 10 10 10 10 10 10 5 Average Capacity 12 | 7 14 15 13 10 10 10 10 10 10 10 10 9 5 Most Carried 15 | 7 15 15 15 10 10 10 10 9 10 10 10 10 5 Average Carried 12 | 5 13 14 12 9 10 9 9 9 9 10 9 9 5 Final Capacity 15 | 8 15 15 10 10 10 10 10 10 10 10 10 5 5 Final Carried 15 | 7 15 15 7 10 10 10 9 9 10 10 8 5 5 Class Distribution -------------------- 67% | Mutant 27% | Hacker-Sprinter Dominant Class ---------------- Mutant | -10/Materials Mutant | -10/Subcaves Mutant | -7/Scraptown Hacker-Sprinter | -5/Factory Hacker-Sprinter | -5/Waste Hacker-Sprinter | -5/Factory Hacker-Sprinter | -5/Upper Caves Hacker-Sprinter | -5/Upper Caves Hacker-Sprinter | -5/Zhirov Hacker-Sprinter | -4/Proximity Caves Hacker-Sprinter | -4/Factory Wizard-Sprinter | -4/Extension Hacker-Mutant | -4/Cetus Resources | -11 -10 -10 -7 -5 -5 -5 -5 -5 -5 -4 -4 -4 -4 ----------- Run | Yrd Mat Sub Scr Fac Was Fac Upp Upp Zhi Pro Fac Ext Cet Matter Collected 2072 | 295 86 445 73 333 . 123 109 258 . 50 26 274 . Remotely . | . . . . . . . . . . . . . . Salvage Created 2622 | 99 68 398 . 452 65 459 182 251 . . 26 622 . Parts 122 | 8 7 9 . 32 1 20 4 13 . . 5 23 . Haulers Intercepted 1 | . . . . 1 . . . . . . . . . Recyclers Shooed 3 | 2 . . . . . 1 . . . . . . . Parts Field Recycled . | . . . . . . . . . . . . . . Retrieved Matter . | . . . . . . . . . . . . . . Parts Self-Destructed 12 | . . 8 . . . . 4 . . . . . . Prevented . | . . . . . . . . . . . . . . Parts Restored . | . . . . . . . . . . . . . . Kills | -11 -10 -10 -7 -5 -5 -5 -5 -5 -5 -4 -4 -4 -4 ------- Run | Yrd Mat Sub Scr Fac Was Fac Upp Upp Zhi Pro Fac Ext Cet Combat Hostiles Destroyed 31 | . 1 9 . . . 11 5 . . . . 5 . Melee 3 | . . . . . . . . . . . . 3 . Guns 4 | . 1 3 . . . . . . . . . . . Cannons 6 | . . 5 . . . . . . . . . 1 . AOE 17 | . . . . . . 11 5 . . . . 1 . Classes Destroyed 16 | 2 3 2 . 2 1 . 1 1 . . . 4 . Worker 8 | . 1 . . 7 . . . . . . . . . Builder 2 | . . . . . . . . . . . . 2 . Tunneler 5 | 2 . . . 3 . . . . . . . . . Hauler 1 | . . . . 1 . . . . . . . . . Recycler 5 | 1 . . . 1 . 2 . . . . . 1 . Operator 2 | . 1 . . . . . . . . . 1 . . Watcher 4 | . . . . 1 . 3 . . . . . . . Swarmer 14 | . . 2 . . . 11 1 . . . . . . Grunt 3 | . 1 1 . . . . 1 . . . . . . Brawler 3 | . . . . . . . 3 . . . . . . Duelist 1 | . . . . . . . . . . . . 1 . Sentry 3 | . . . . . . . . . . . . 3 . Hunter 1 | . . . . . . . . . . . . 1 . Subdweller 6 | . . 6 . . . . . . . . . . . Decomposer 4 | . . . . . . . 1 3 . . . . . Samaritan 4 | . . . . . . . . 4 . . . . . Butcher 1 | . . . . . . . . . . . . 1 . Martyr 1 | . . . . . 1 . . . . . . . . Best Kill Streak 5 | 2 1 2 . 5 . 5 4 . . . 1 3 . Combat Bots Only 4 | . 1 2 . . . 4 4 . . . . 1 . Max Kills in Single Turn 4 | 1 1 1 . 1 1 4 1 1 . . 1 2 . Gunslinging . | . . . . . . . . . . . . . . Exploded 4 | . . . . . . 4 1 . . . . 1 . Melee 1 | . . . . . . . . . . . . 1 . Uniques/NPCs Destroyed . | . . . . . . . . . . . . . . Combat | -11 -10 -10 -7 -5 -5 -5 -5 -5 -5 -4 -4 -4 -4 -------- Run | Yrd Mat Sub Scr Fac Was Fac Upp Upp Zhi Pro Fac Ext Cet Hostile Shots Fired 350 | . 1 70 . 19 . 63 11 . . 2 42 136 6 Missed 136 | . 1 14 . 9 . 34 8 . . . 25 42 3 Hits 214 | . . 56 . 10 . 29 3 . . 2 17 94 3 Melee 5 | . . . . . . . . . . . . 5 . Projectile 209 | . . 56 . 10 . 29 3 . . 2 17 89 3 Critical Strikes 12 | . . 1 . . . 1 . . . . 1 9 . Part Disruptions 1 | . . . . . . . . . . . 1 . . Damage Taken 3972 | . . 850 . 180 24 561 51 . . 46 334 1853 73 Core 1498 | . . 106 . 45 . 149 13 . . 27 57 1051 50 Absorbed by Shields 140 | . . . . . . . . . . . 17 123 . Regen/Repaired (Parts) 63 | . . . . . 1 62 . . . . . . . Core Remaining (%) 77 | 100 . . 57 . . . . . . 76 . . . Volleys Fired 131 | 7 12 77 . . . 7 10 . . . . 18 . Largest 2 | 2 2 2 . . . 1 1 . . . . 1 . Hottest 160 | 70 70 160 . . . 46 46 . . . . 48 . Shots Fired 183 | 13 25 110 . . . 7 10 . . . . 18 . Gun 106 | 13 25 64 . . . . . . . . . 4 . Cannon 55 | . . 46 . . . . . . . . . 9 . Launcher 20 | . . . . . . 5 10 . . . . 5 . Special 2 | . . . . . . 2 . . . . . . . Kinetic 57 | 6 15 23 . . . . . . . . . 13 . Thermal 106 | 7 10 87 . . . 2 . . . . . . . Explosive 20 | . . . . . . 5 10 . . . . 5 . Electromagnetic . | . . . . . . . . . . . . . . Robot Hit Streak 8 | 4 5 8 . . . 6 . . . . . 1 . Robot Miss Streak 6 | 2 3 6 . . . . . . . . . 3 . Penetration Max . | . . . . . . . . . . . . . . Secondary Targets . | . . . . . . . . . . . . . . Shots Hit Robots 108 | 8 16 35 . 14 2 7 . 8 . . 7 11 . Core Hits 79 | 4 6 11 . 8 1 14 13 3 . . 3 16 . Critical Kills 3 | . . 1 . . . . . . . . . 2 . Critical Parts Destroyed 1 | . . . . . . . . . . . . 1 . Critical Strikes 9 | . 1 1 . . . 1 . . . . 2 4 . Burn 1 | . 1 . . . . . . . . . . . . Meltdown 1 | . . 1 . . . . . . . . . . . Destroy 4 | . . . . . . . . . . . . 4 . Sever 3 | . . . . . . 1 . . . . 2 . . Melee Attacks 143 | . . . . 52 2 39 2 9 . 3 29 7 . Impact . | . . . . . . . . . . . . . . Slashing 126 | . . . . 52 2 22 2 9 . 3 29 7 . Piercing 17 | . . . . . . 17 . . . . . . . Sneak Attacks 25 | . . . . 12 2 1 . 8 . . . 2 . Combat Hostiles 1 | . . . . . . . . . . . . 1 . Follow-up Attacks . | . . . . . . . . . . . . . . Damage Inflicted 7935 | 97 208 872 . 1460 212 1469 997 767 . . 327 1526 . Guns 656 | 95 208 303 . . . . . . . . . 50 . Cannons 627 | . . 569 . . . . . . . . . 58 . Explosions 3077 | . . . . . . 1068 997 . . . . 1012 . Melee 3560 | . . . . 1460 212 401 . 767 . . 327 393 . Ramming 15 | 2 . . . . . . . . . . . 13 . Kinetic 442 | 70 121 143 . . . . . . . . . 108 . Thermal 841 | 25 87 729 . . . . . . . . . . . Explosive 3077 | . . . . . . 1068 997 . . . . 1012 . Electromagnetic . | . . . . . . . . . . . . . . Impact . | . . . . . . . . . . . . . . Slashing 3499 | . . . . 1460 212 340 . 767 . . 327 393 . Piercing 61 | . . . . . . 61 . . . . . . . Highest Corruption 5 | . 4 4 . . . 2 2 . . . 4 5 5 Average Corruption 3 | . 3 4 . . . 1 1 . . . 2 4 5 Corruption Purged 2 | . . . . . . . 2 . . . . . . Corruption Blocked . | . . . . . . . . . . . . . . Effects 132 | . 6 104 . . . 5 . . . . 1 14 2 Message Errors 35 | . 2 25 . . . 2 . . . . . 5 1 Matter Fused 30 | . 2 22 . . . 3 . . . . . 3 . Heat Flow Errors 14 | . 1 13 . . . . . . . . . . . Energy Discharges 11 | . . 11 . . . . . . . . . . . Parts Fused 2 | . . 1 . . . . . . . . 1 . . Data Loss (minor) 15 | . . 11 . . . . . . . . . 3 1 Data Loss (major) 7 | . . 5 . . . . . . . . . 2 . Misfires 12 | . 1 11 . . . . . . . . . . . Alerts 3 | . . 2 . . . . . . . . . 1 . Weapon Failures 3 | . . 3 . . . . . . . . . . . Overload Shots . | . . . . . . . . . . . . . . Overflow Damage 975 | . . . . 326 75 213 13 347 . . . 1 . Projectiles . | . . . . . . . . . . . . . . Explosions 146 | . . . . . . 133 13 . . . . . . Melee 829 | . . . . 326 75 80 . 347 . . . 1 . Knockbacks . | . . . . . . . . . . . . . . Impact . | . . . . . . . . . . . . . . Kinetic . | . . . . . . . . . . . . . . Secondary . | . . . . . . . . . . . . . . Self-Inflicted Damage 23 | . . . . . . 18 . . . . . 5 . Shots 2 | . . . . . . 2 . . . . . . . Rammed 6 | 1 . . . . . . . . . . . 5 . Targets Rammed 6 | 1 . . . . . . . . . . . 5 . Kicked . | . . . . . . . . . . . . . . Crushed . | . . . . . . . . . . . . . . Highest Temperature 247 | 27 221 247 . 63 100 52 40 . . . . 4 . Average Temperature 22 | 11 43 60 . 16 48 6 23 . . . . 4 . Received Heat Transfer 620 | . . 135 . . 9 108 . . . 9 30 329 . Siege Activations . | . . . . . . . . . . . . . . Martial Activations . | . . . . . . . . . . . . . . Shielding Activations . | . . . . . . . . . . . . . . Robots Disrupted . | . . . . . . . . . . . . . . Combat Hostiles . | . . . . . . . . . . . . . . Robots Corrupted . | . . . . . . . . . . . . . . Combat Hostiles . | . . . . . . . . . . . . . . Parts Fried . | . . . . . . . . . . . . . . Impact Corruptions . | . . . . . . . . . . . . . . Robots Melted 1 | . . 1 . . . . . . . . . . . Combat Hostiles 1 | . . 1 . . . . . . . . . . . Parts Melted 4 | . . 4 . . . . . . . . . . . Heat Transferred 1384 | 74 333 977 . . . . . . . . . . . Parts Sabotaged . | . . . . . . . . . . . . . . Parts Stolen . | . . . . . . . . . . . . . . Parts Stripped . | . . . . . . . . . . . . . . Power Chain Reactions . | . . . . . . . . . . . . . . Alert | -11 -10 -10 -7 -5 -5 -5 -5 -5 -5 -4 -4 -4 -4 ------- Run | Yrd Mat Sub Scr Fac Was Fac Upp Upp Zhi Pro Fac Ext Cet Maximum Alert Level 2 | . . . . . . 2 . . . . . 1 . Low Security (%) 74 | 100 100 . . 100 100 19 . . . . 100 42 100 Level 1 22 | . . . . . . 67 . . . . . 57 . Level 2 2 | . . . . . . 12 . . . . . . . Level 3 . | . . . . . . . . . . . . . . Level 4 . | . . . . . . . . . . . . . . Level 5 . | . . . . . . . . . . . . . . High Security . | . . . . . . . . . . . . . . Max Security . | . . . . . . . . . . . . . . Peak Influence 457 | 10 30 . . 164 125 457 . . . . 63 373 132 Initial 132 | . . . . . 47 34 . . . . . 11 132 Average 106 | . 2 . . 87 72 261 . . . . 17 189 128 Influence Increases 3674 | 15 70 130 . 519 102 1490 235 . . . 206 907 . Destroy 0b10 Robot/C 1140 | . 20 60 . 20 . 540 100 . . . . 400 . Destroy 0b10 Robot/NC 150 | 15 10 . . 70 . 25 . . . . 5 25 . Destroy Leader 134 | . 10 10 . 6 . 76 . . . . . 32 . Allied During Kill 428 | . . . . . . 134 . . . . . 294 . Successful Hack 174 | . . . . 77 . 67 . . . . 30 . . Select Force Hacks 30 | . 30 . . . . . . . . . . . . Disable Machine 150 | . . . . 105 . 30 . . . . 15 . . Destroy Structure 478 | . . . . 106 102 198 . . . . 36 36 . Partial Spotted 210 | . . . . 45 . 60 . . . . 30 75 . Lose Combat Pursuer 780 | . . 60 . 90 . 360 135 . . . 90 45 . Influence Decreases 3552 | 15 70 127 3 383 189 1259 214 108 193 . 182 694 115 Entered New Map 580 | . . . 3 . 89 15 104 58 193 . . 13 105 Time Decay 1628 | 15 70 127 . 343 60 404 100 50 . . 139 310 10 Search Patrol Dispatched 100 | . . . . . . 100 . . . . . . . Lost Part 193 | . . . . . . 30 10 . . . 22 131 . Lost Ally 580 | . . . . 40 40 260 . . . . . 240 . Purge Threat 471 | . . . . . . 450 . . . . 21 . . Squads Dispatched 32 | . 3 . . 8 . 13 . . . . 4 4 . Investigation 12 | . 1 . . 3 . 6 . . . . 1 1 . Extermination 6 | . . . . 2 . 3 . . . . 1 . . Reinforcement 11 | . 2 . . 3 . 2 . . . . 1 3 . Assault 2 | . . . . . . 2 . . . . . . . Garrison 1 | . . . . . . . . . . . 1 . . Intercept . | . . . . . . . . . . . . . . Searches Triggered 1 | . . . . . . 1 . . . . . . . Construction Impeded 2 | . . . . . . 1 . . . . . 1 . Haulers Reinforced . | . . . . . . . . . . . . . . Active Scanning Responses . | . . . . . . . . . . . . . . Cargo Convoy Interrupts 1 | . . . . . . 1 . . . . . . . Stealth | -11 -10 -10 -7 -5 -5 -5 -5 -5 -5 -4 -4 -4 -4 --------- Run | Yrd Mat Sub Scr Fac Was Fac Upp Upp Zhi Pro Fac Ext Cet Distress Signals 10 | . . . . 1 . 3 . . . . 3 2 1 Communications Jammed . | . . . . . . . . . . . . . . Distress Signals . | . . . . . . . . . . . . . . Times Spotted 158 | . 4 14 . 19 6 41 9 . . 1 27 32 5 Peak Tracking Total 10 | . 1 3 . 9 3 10 5 . . 2 10 8 5 Tactical Retreats 27 | . . 3 . 4 . 11 3 . . . 4 2 . Traps | -11 -10 -10 -7 -5 -5 -5 -5 -5 -5 -4 -4 -4 -4 ------- Run | Yrd Mat Sub Scr Fac Was Fac Upp Upp Zhi Pro Fac Ext Cet Traps Triggered 19 | . 3 1 . 4 . 2 . . . . 3 6 . Indirectly . | . . . . . . . . . . . . . . Trap Hack Attempts . | . . . . . . . . . . . . . . Triggered . | . . . . . . . . . . . . . . Disarmed . | . . . . . . . . . . . . . . Reprogrammed . | . . . . . . . . . . . . . . Reused . | . . . . . . . . . . . . . . Traps Extracted . | . . . . . . . . . . . . . . Installed . | . . . . . . . . . . . . . . Triggered . | . . . . . . . . . . . . . . Machines | -11 -10 -10 -7 -5 -5 -5 -5 -5 -5 -4 -4 -4 -4 ---------- Run | Yrd Mat Sub Scr Fac Was Fac Upp Upp Zhi Pro Fac Ext Cet Machines Disabled 12 | . . 1 . 7 . 2 1 . . . 1 . . Max in Single Turn 1 | . . 1 . 1 . . 1 . . . 1 . . Garrison Access 8 | . . . . 4 . 3 . . . . 1 . . Machines Repaired . | . . . . . . . . . . . . . . Machines Dismantled . | . . . . . . . . . . . . . . Machines Sabotaged . | . . . . . . . . . . . . . . Overloaded Fab Kills . | . . . . . . . . . . . . . . Hacking | -11 -10 -10 -7 -5 -5 -5 -5 -5 -5 -4 -4 -4 -4 --------- Run | Yrd Mat Sub Scr Fac Was Fac Upp Upp Zhi Pro Fac Ext Cet Machines Accessed 66 | . 5 1 2 17 . 22 1 . 4 . 8 6 . Terminals 32 | . 4 . . 7 . 10 . . . . 5 6 . Fabricators 6 | . . . . 2 . 4 . . . . . . . Repair Stations 1 | . . . . . . 1 . . . . . . . Recycling Units 9 | . 1 . . 3 . 4 . . . . 1 . . Scanalyzers 3 | . . . . 1 . 1 . . . . 1 . . Garrison Access 7 | . . . . 4 . 2 . . . . 1 . . Total Hacks 191 | . 10 1 23 37 . 63 1 . 17 . 21 18 . Successful 129 | . 7 1 23 22 . 37 1 . 17 . 13 8 . Failed 62 | . 3 . . 15 . 26 . . . . 8 10 . Catastrophic 9 | . 1 . . 2 . 3 . . . . 1 2 . Database Lockouts . | . . . . . . . . . . . . . . Manual 99 | . 10 . . 26 . 42 . . . . 9 12 . Terminals 96 | . 9 . . 21 . 33 . . . . 15 18 . Fabricators 21 | . . . . 4 . 17 . . . . . . . Repair Stations 2 | . . . . . . 2 . . . . . . . Recycling Units 14 | . 1 . . 5 . 7 . . . . 1 . . Scanalyzers 3 | . . . . 1 . 1 . . . . 1 . . Garrison Access 13 | . . . . 6 . 3 . . . . 4 . . Terminal Hacks 78 | . . 1 23 6 . 14 1 . 17 . 8 8 . Record 29 | . . . 23 . . 1 . . 5 . . . . Part Schematic 13 | . . . . 1 . 6 . . 4 . . 2 . Robot Analysis 4 | . . . . . . . . . 4 . . . . Prototype ID Bank 4 | . . . . . . . . . 4 . . . . Open Door 6 | . . . . . . . 1 . . . 1 4 . Branch Access Points 3 | . . . . 1 . 1 . . . . 1 . . Machine Index 1 | . . . . . . 1 . . . . . . . Terminal Index 1 | . . . . . . . . . . . 1 . . Fabricator Index 2 | . . . . . . 1 . . . . 1 . . Repair Station Index 1 | . . . . . . . . . . . 1 . . Unreport Threat 4 | . . . . . . 3 . . . . 1 . . Recall Investigation 2 | . . . . . . 1 . . . . . 1 . Recall Reinforcements 2 | . . . . 1 . . . . . . . 1 . Hauler Manifests 3 | . . . . 2 . . . . . . 1 . . Zone Layout 2 | . . . . 1 . . . . . . 1 . . Proto ID Catalog 1 | . . 1 . . . . . . . . . . . Fabricator Hacks 8 | . . . . 1 . 7 . . . . . . . Load Schematic 6 | . . . . 1 . 5 . . . . . . . Build 2 | . . . . . . 2 . . . . . . . Repair Station Hacks 2 | . . . . . . 2 . . . . . . . Scan Component 1 | . . . . . . 1 . . . . . . . Repair 1 | . . . . . . 1 . . . . . . . Recycling Unit Hacks . | . . . . . . . . . . . . . . Scanalyzer 3 | . . . . 1 . 1 . . . . 1 . . Retrieve Study 3 | . . . . 1 . 1 . . . . 1 . . Garrison Access Hacks 7 | . . . . 4 . 2 . . . . 1 . . Seal Access 7 | . . . . 4 . 2 . . . . 1 . . Unauthorized Hacks 31 | . 7 . . 10 . 11 . . . . 3 . . Terminals 18 | . 6 . . 5 . 5 . . . . 2 . . Assimilate 5 | . 1 . . 2 . 2 . . . . . . . Botnet 6 | . 1 . . 1 . 3 . . . . 1 . . Skim 7 | . 4 . . 2 . . . . . . 1 . . Fabricators 6 | . . . . 3 . 3 . . . . . . . Prioritize 2 | . . . . 1 . 1 . . . . . . . Liberate 1 | . . . . 1 . . . . . . . . . Recompile 3 | . . . . 1 . 2 . . . . . . . Repair Stations . | . . . . . . . . . . . . . . Recycling Units 7 | . 1 . . 2 . 3 . . . . 1 . . Tunnel 1 | . 1 . . . . . . . . . . . . Fedlink 6 | . . . . 2 . 3 . . . . 1 . . Scanalyzers . | . . . . . . . . . . . . . . Garrison Access . | . . . . . . . . . . . . . . Data Cores Recovered 2 | . . . . . . . . . . . 1 1 . Used . | . . . . . . . . . . . . . . Hacking Detections 36 | . 4 . . 8 . 17 . . . . 4 3 . Full Trace Events 2 | . . . . . . 1 . . . . . 1 . Feedback Events 1 | . . . . . . 1 . . . . . . . Corruption 1 | . . . . . . 1 . . . . . . . Feedback Blocked . | . . . . . . . . . . . . . . Robot Schematics Acquired . | . . . . . . . . . . . . . . Robots Built . | . . . . . . . . . . . . . . Authchips . | . . . . . . . . . . . . . . Time . | . . . . . . . . . . . . . . Total Robot Build Rating . | . . . . . . . . . . . . . . Part Schematics Acquired 13 | . . . . 1 . 6 . . 4 . . 2 . Parts Built 2 | . . . . . . 2 . . . . . . . Authchips 2 | . . . . . . 2 . . . . . . . Time 76 | . . . . . . 76 . . . . . . . Total Part Build Rating 10 | . . . . . . 10 . . . . . . . Part Studies Acquired 3 | . . . . 1 . 1 . . . . 1 . . Parts Repaired 1 | . . . . . . 1 . . . . . . . Time 56 | . . . . . . 56 . . . . . . . Parts Recycled . | . . . . . . . . . . . . . . Recycled Matter . | . . . . . . . . . . . . . . Retrieved Matter . | . . . . . . . . . . . . . . Retrieved Components . | . . . . . . . . . . . . . . Parts Scanalyzed . | . . . . . . . . . . . . . . Part Schematics Acquired . | . . . . . . . . . . . . . . Parts Damaged . | . . . . . . . . . . . . . . Bothacking | -11 -10 -10 -7 -5 -5 -5 -5 -5 -5 -4 -4 -4 -4 ------------ Run | Yrd Mat Sub Scr Fac Was Fac Upp Upp Zhi Pro Fac Ext Cet Used RIF Installer . | . . . . . . . . . . . . . . Robots Hacked . | . . . . . . . . . . . . . . Non-combat . | . . . . . . . . . . . . . . Combat . | . . . . . . . . . . . . . . Robot Hacks Applied . | . . . . . . . . . . . . . . Relay Couplers Released 2 | . . . . . . 2 . . . . . . . Machine Destruction 2 | . . . . . . 2 . . . . . . . Fabnet Peak Effective % . | . . . . . . . . . . . . . . Robots Rewired 8 | . . . . . . . . . . . . 8 . Allies Hacked . | . . . . . . . . . . . . . . Hacks Repelled . | . . . . . . . . . . . . . . Allies | -11 -10 -10 -7 -5 -5 -5 -5 -5 -5 -4 -4 -4 -4 -------- Run | Yrd Mat Sub Scr Fac Was Fac Upp Upp Zhi Pro Fac Ext Cet Total Allies 40 | . . . . 4 20 2 . . . . . 14 . Largest Group 20 | . . . . 3 20 13 . . . . . 10 . Highest-Rated Group 715 | . . . . 92 715 490 . . . . . 533 . Highest-Rated Ally 159 | . . . . 41 50 46 . . . . . 159 . Total Orders . | . . . . . . . . . . . . . . Ally Attacks 286 | . . . . 5 99 70 . . . . . 112 . Total Damage 9975 | . . . . 664 4516 1703 . . . . . 3092 . Kills 47 | . . . . 3 10 16 . . . . . 18 . Allies Corrupted 3 | . . . . . . 3 . . . . . . . Allies Melted 1 | . . . . . . 1 . . . . . . . Intel | -11 -10 -10 -7 -5 -5 -5 -5 -5 -5 -4 -4 -4 -4 ------- Run | Yrd Mat Sub Scr Fac Was Fac Upp Upp Zhi Pro Fac Ext Cet Active Infowar (turns) 5212 | 167 1209 714 . 797 127 969 175 102 49 419 401 83 . Sensors 3122 | . . . . 797 127 969 175 102 49 419 401 83 . Seismic 2090 | 167 1209 714 . . . . . . . . . . . Robot Analysis Total 4 | . . . . . . . . . 4 . . . . Derelict Logs Recovered 9 | . . 3 5 . . . . . . 1 . . . Drone Launches . | . . . . . . . . . . . . . . Drone Recoveries . | . . . . . . . . . . . . . . Exploration | -11 -10 -10 -7 -5 -5 -5 -5 -5 -5 -4 -4 -4 -4 ------------- Run | Yrd Mat Sub Scr Fac Was Fac Upp Upp Zhi Pro Fac Ext Cet Turns Passed 12005 | 250 1209 4019 2663 873 127 971 209 102 51 419 401 682 29 Spaces Moved 12717 | 135 485 2263 1346 2215 252 2456 494 306 138 688 967 957 15 Core 211 | 5 . . 144 . . . . . . . . 47 15 Treads 3027 | 130 485 1871 541 . . . . . . . . . . Legs . | . . . . . . . . . . . . . . Wheels 707 | . . 392 315 . . . . . . . . . . Hover . | . . . . . . . . . . . . . . Flight 8772 | . . . 346 2215 252 2456 494 306 138 688 967 910 . Fastest Speed 19 | 50 160 120 37 28 28 19 19 26 26 31 26 19 200 Average Speed 76 | 155 160 166 190 28 28 28 25 26 27 31 31 28 200 Slowest Speed 550 | 160 160 240 500 31 28 103 26 26 31 31 106 550 200 Overloaded Moves 121 | . . . . . . 6 3 . . . . 112 . Propulsion Burnouts . | . . . . . . . . . . . . . . Robots Hopped 50 | . . . . . . 19 1 . . . 19 11 . Potential Cave-ins . | . . . . . . . . . . . . . . Cave-ins Triggered . | . . . . . . . . . . . . . . Teleports 1 | . . . . . . . . . . . . 1 . Exploration Rate (%) 57 | 6 55 94 85 55 89 63 61 50 60 77 24 76 10 Regions Visited 13 Branch Regions 8 Pre-discovered Areas 11 | . 1 . 6 1 . . . . 3 . . . . Known Exits Taken 8 | . . . 1 . . 1 1 1 1 1 1 1 . Unknown Exits Taken 3 | 1 1 1 . . . . . . . . . . . Scrap Searched 22 | . . 14 5 . . . 2 1 . . . . . Spaces Dug 83 | . . . . 34 . 25 2 1 . 3 18 . . Terrain Destroyed 273 | . . 4 . 34 . 111 71 1 . 3 18 31 . Melee 83 | . . . . 34 . 25 2 1 . 3 18 . . Projectile 6 | . . 4 . . . . . . . . . 2 . AOE 184 | . . . . . . 86 69 . . . . 29 . Terrain Rammed . | . . . . . . . . . . . . . . Walls Destroyed . | . . . . . . . . . . . . . . Machines Disabled . | . . . . . . . . . . . . . . Actions | -11 -10 -10 -7 -5 -5 -5 -5 -5 -5 -4 -4 -4 -4 --------- Run | Yrd Mat Sub Scr Fac Was Fac Upp Upp Zhi Pro Fac Ext Cet Total 14496 | 157 898 2422 1459 2374 303 2632 562 314 150 888 1001 1321 15 Wait 1083 | . 368 40 33 22 50 79 39 . . 198 2 252 . Move 12609 | 134 484 2262 1345 2215 251 2419 491 305 137 687 928 936 15 Hop 46 | . . . . . . 17 1 . . . 19 9 . Pick Up 85 | 7 15 10 22 10 . 10 6 . 3 . . 2 . Fast Attach 63 | 7 4 8 10 15 . 4 . . 3 . 5 7 . Attach 44 | . . 4 5 6 . 12 5 . 2 . 4 6 . Detach 28 | . 1 . 6 7 . 4 1 . 1 . 2 6 . Swap 16 | 1 3 4 . 3 . 3 1 . . . . 1 . Drop 99 | . 11 17 38 14 . 8 6 . 4 . . 1 . Fire 131 | 7 12 77 . . . 7 10 . . . . 18 . Melee 143 | . . . . 52 2 39 2 9 . 3 29 7 . Ram 5 | . . . . . . . . . . . . 5 . Kick . | . . . . . . . . . . . . . . Crush 1 | 1 . . . . . . . . . . . . . Escape Stasis 117 | . . . . 30 . 30 . . . . 12 45 . Rewire 26 | . . . . . . . . . . . . 26 . Trap . | . . . . . . . . . . . . . . Miscellaneous . | . . . . . . . . . . . . . . Route ------- -11/Scrapyard -10/Materials (discovered 3 exits: [*Mat] / [*Min] / *Sub) -10/Subcaves (discovered 4 exits: [*Mat x2] / [*Rec] / *Scr) -7/Scraptown (discovered 2 exits: *Fac x2) -5/Factory (discovered 6 exits: *Fac x4 / *Upp x2) -5/Waste -5/Factory (discovered 3 exits: *Fac / *Upp x2) -5/Upper Caves -5/Upper Caves -5/Zhirov -4/Proximity Caves -4/Factory (discovered 5 exits: *Upp x2 / *Ext x2 / Arm) -4/Extension (discovered 2 exits: *Res / *Cet) -4/Cetus History --------- Turn | Location | Event 4 | -11/Scrapyard | Discovered new exit (range 14) 251 | -11/Scrapyard | Entered Materials 252 | -10/Materials | Met a group of wandering Federalists 304 | -10/Materials | Build established: Mutant 470 | -10/Materials | Discovered new exit (range 15) 1237 | -10/Materials | Discovered new exit (range 9) 1287 | -10/Materials | Discovered new exit (range 5) 1460 | -10/Materials | Entered Subcaves 1461 | -10/Subcaves | Continued accompanying wandering Federalists (6) 1677 | -10/Subcaves | Wandering Federalist uncovered a shortcut to Scraptown 1692 | -10/Subcaves | Learned Materials non-interactive machine intel 2130 | -10/Subcaves | Discovered new exit (range 12) 2168 | -10/Subcaves | Disturbed a concealed Subdweller 2426 | -10/Subcaves | Discovered new exit (range 15) 3550 | -10/Subcaves | Visited 4L-MR0's lab 3572 | -10/Subcaves | Found Power Bank 3700 | -10/Subcaves | Shifting Twisted Machinery released Sub. Beam Cannon 3730 | -10/Subcaves | Shifting Twisted Machinery released Flamer 3736 | -10/Subcaves | A swath of the cavern ceiling suddenly collapsed 4232 | -10/Subcaves | Discovered new exit (range 11) 4349 | -10/Subcaves | Ambushed by Subdwellers from Twisted Machinery 4959 | -10/Subcaves | Lost 3 parts (1p1n1u) 5136 | -10/Subcaves | Shifting Twisted Machinery released Mak. Light Armor Plating 5479 | -10/Subcaves | Entered Scraptown 5479 | -7/Scraptown | System corruption cleaned by C-Scrubber 5665 | -7/Scraptown | Discovered new exit (range 11) 5724 | -7/Scraptown | Scanned Subdweller tech in exchange for log data 5726 | -7/Scraptown | Learned Research non-interactive machine intel 5728 | -7/Scraptown | Learned Factory stockpile data 5730 | -7/Scraptown | Learned Research terminal intel 5733 | -7/Scraptown | Learned location of Quarantine (-2) 5828 | -7/Scraptown | Visited Assassins FH 5869 | -7/Scraptown | Heard Great Nut preacher, LISTEN AND RECITE! 6180 | -7/Scraptown | Visited Cyclists 6212 | -7/Scraptown | Visited Shadow of the Wyrm 6359 | -7/Scraptown | Visited SPCMW 6404 | -7/Scraptown | Visited UFD Registry 6404 | -7/Scraptown | Registered with UFD as "Zerospawn" 6513 | -7/Scraptown | Visited Science Guys 6571 | -7/Scraptown | Visited A0-MCA Data Center 6622 | -7/Scraptown | Visited Scrapoid Pod Storage 6667 | -7/Scraptown | Visited Cartography Club 6718 | -7/Scraptown | Visited Scrapoid Research Area 6759 | -7/Scraptown | Visited Derelict Rescue Squad 6801 | -7/Scraptown | Visited Research Penetration Think Tank 6875 | -7/Scraptown | Visited Curators Association 6977 | -7/Scraptown | Visited Abandonware Association 7012 | -7/Scraptown | Learned abandonware demo "HACKBUD.EXE" 7012 | -7/Scraptown | Learned abandonware demo "MELTYB.EXE" 7089 | -7/Scraptown | Visited Junk Cannon Lab 7670 | -7/Scraptown | Learned location of Upper Caves (-5) 7670 | -7/Scraptown | Learned location of Hub_04(d) (-4) 7670 | -7/Scraptown | Learned 12 Factory zone layouts 7670 | -7/Scraptown | Learned 20 Factory zone layouts 7670 | -7/Scraptown | Learned 16 Research zone layouts 7670 | -7/Scraptown | Learned 24 Upper Caves zone layouts 7670 | -7/Scraptown | Learned 8 Proximity Caves zone layouts 7670 | -7/Scraptown | Learned 12 Proximity Caves zone layouts 7670 | -7/Scraptown | Learned 4 Armory zone layouts 7670 | -7/Scraptown | Learned location of 3 exits from Factory 7670 | -7/Scraptown | Learned location of 2 exits from Research 7670 | -7/Scraptown | Learned location of 1 exit from Lower Caves 7670 | -7/Scraptown | Identified exit to Factory 7690 | -7/Scraptown | Found Deep Structural Scanner 7745 | -7/Scraptown | Delivered Scrap Shield to a Scientist 7908 | -7/Scraptown | Given a B- rating by A0-MCA 7914 | -7/Scraptown | Found A0-MCA's Component Scanner 8046 | -7/Scraptown | Met Optimus 8046 | -7/Scraptown | Accepted into 0bPrime 8142 | -7/Scraptown | Entered Factory 8142 | -5/Factory | Evolved 10 slots: Power x1, Propulsion x4, Utility x5 8143 | -5/Factory | Identified exit to Factory 8144 | -5/Factory | Identified exit to Upper Caves 8171 | -5/Factory | Loaded intel: 8 recycling unit locations 8444 | -5/Factory | Build established: Hacker-Sprinter 8609 | -5/Factory | Found Prototype Launcher 8609 | -5/Factory | Identified Tesla Bomb Launcher 8700 | -5/Factory | Learned location of Protoforge (-2) 9015 | -5/Factory | Manually triggered Chute Trap 9015 | -5/Factory | Sucked down chute 9015 | -5/Factory | Entered Waste 9016 | -5/Waste | Met a frightened Derelict 9018 | -5/Waste | Spotted C-40 Crusher 9023 | -5/Waste | Spotted C-40 Crusher 9027 | -5/Waste | Spotted C-40 Crusher 9031 | -5/Waste | Warlord forces began an assault 9039 | -5/Waste | Allies destroyed C-40 Crusher 9039 | -5/Waste | Allies destroyed C-40 Crusher 9045 | -5/Waste | Allies destroyed C-40 Crusher 9056 | -5/Waste | Spotted C-40 Crusher 9056 | -5/Waste | Spotted C-40 Crusher 9056 | -5/Waste | Spotted C-40 Crusher 9064 | -5/Waste | Allies destroyed C-40 Crusher 9068 | -5/Waste | Allies destroyed C-40 Crusher 9068 | -5/Waste | Allies destroyed C-40 Crusher 9076 | -5/Waste | Discovered new exit (range 12) 9094 | -5/Waste | Identified exit to Factory 9099 | -5/Waste | Lost 6 allies 9142 | -5/Waste | Entered Factory 9142 | -5/Factory | Accompanied by 13 allies 9157 | -5/Factory | Loaded intel: 8 recycling unit locations 9344 | -5/Factory | Fabricated Cld. Cesium-ion Thruster (x1) 9371 | -5/Factory | Spotted B-75 Beast 9537 | -5/Factory | Lost 4 allies 9647 | -5/Factory | Repaired Nuclear Pulse Array+ 9789 | -5/Factory | Fabricated Cld. Cesium-ion Thruster (x1) 9869 | -5/Factory | Discovered exit to Factory (range 12) 9879 | -5/Factory | Lost 3 parts (2n1w) 9893 | -5/Factory | Cargo convoy interrupted 10042 | -5/Factory | Search patrols dispatched 10113 | -5/Factory | Entered Upper Caves 10115 | -5/Upper Caves | UFD Scientist delivered a prototype 10154 | -5/Upper Caves | Found Prototype Protection 10216 | -5/Upper Caves | Attracted the attention of an 0b10 outpost 10286 | -5/Upper Caves | Discovered new exit (range 11) 10288 | -5/Upper Caves | Identified exit to Upper Caves 10322 | -5/Upper Caves | Entered another Upper Caves area 10325 | -5/Upper Caves | Discovered new exit (range 91) 10384 | -5/Upper Caves | Identified exit to Zhirov 10424 | -5/Upper Caves | Entered Zhirov 10425 | -5/Zhirov | Discovered new exit (range 3) 10430 | -5/Zhirov | Met Zhirov 10434 | -5/Zhirov | Learned location of Testing (-3) 10434 | -5/Zhirov | Learned location of Command (-1) 10437 | -5/Zhirov | Zhirov requested help retrieving the SGEMP Prototype 10443 | -5/Zhirov | Found Alien Artifact 10443 | -5/Zhirov | Identified Integrated Dissipator 10443 | -5/Zhirov | Installed Integrated Dissipator, increased core heat dissipation (+20) 10462 | -5/Zhirov | Found Alien Artifact 10474 | -5/Zhirov | Identified exit to Proximity Caves 10475 | -5/Zhirov | Entered Proximity Caves 10663 | -4/Proximity Caves | Learned location of 1 exit from Research 10894 | -4/Proximity Caves | Entered Factory 10894 | -4/Factory | Evolved 2 slots: Utility x2 10962 | -4/Factory | Loaded intel: 8 recycling unit locations 10970 | -4/Factory | Discovered new exit (range 12) 10973 | -4/Factory | Identified exit to Upper Caves 11025 | -4/Factory | Garrison activated, responded to threat 11092 | -4/Factory | Identified exit to Extension 11092 | -4/Factory | Identified exit to Armory 11136 | -4/Factory | Identified Enh. Scrap Shield 11295 | -4/Factory | Entered Extension 11352 | -4/Extension | Disrupted transfer network 11360 | -4/Extension | Rescued A7 11446 | -4/Extension | Rescued a captive Derelict 11447 | -4/Extension | Rescued a captive Derelict 11475 | -4/Extension | Lost 4 allies 11548 | -4/Extension | Rescued a captive Derelict 11550 | -4/Extension | Rescued a captive Derelict 11555 | -4/Extension | Rescued a captive Derelict 11834 | -4/Extension | Spotted B-86 Titan 11862 | -4/Extension | Allies destroyed B-86 Titan 11865 | -4/Extension | Spotted B-86 Titan 11871 | -4/Extension | Allies destroyed B-86 Titan 11902 | -4/Extension | Build established: Wizard-Sprinter 11911 | -4/Extension | Lost 3 parts (1p1n1w) 11918 | -4/Extension | Lost 4 allies 11933 | -4/Extension | Core integrity fell below 50% 11939 | -4/Extension | Core integrity fell below 20% 11943 | -4/Extension | Identified Transdimensional Reconstructor 11943 | -4/Extension | Warped through subspace 11947 | -4/Extension | Discovered new exit (range 16) 11948 | -4/Extension | Discovered new exit (range 14) 11955 | -4/Extension | Identified exit to Research 11957 | -4/Extension | Found Quantum Capacitor 11964 | -4/Extension | Identified exit to Cetus 11967 | -4/Extension | Lost 10 parts (1p4n4u1w) 11977 | -4/Extension | Entered Cetus 12001 | -4/Cetus | Spotted Cetus Guard 12001 | -4/Cetus | Spotted Cetus Guard 12004 | -4/Cetus | Spotted Cetus Guard 12004 | -4/Cetus | Spotted Cetus Guard 12006 | -4/Cetus | Destroyed by Cetus Guard with Advanced KE Penetrator Last Messages --------------- 11937_ Slammed into L-61 Swordsman. 11937_ L-61 Swordsman destroyed. 11938_ Critical hit (Burn: +26). 11940_ R-10 Processor destroyed. 11943_ Acquired Alien Artifact. 11943_ Identified Transdimensional Reconstructor. 11943_ Warped through subspace. 11947_ EXIT=FOUND 11953_ System corrupted: Component data lost. 11955_ EXIT=IDENTIFIED: RESEARCH 11957_ Acquired Quantum Capacitor. 11964_ EXIT=IDENTIFIED: CETUS 11967_ Acquired Railgun. LOCATION=CETUS GOAL=ESCAPE 11982_ System corrupted: Component data lost. 11997_ WONVW EJSZMATGPC6Q DBMY,CSZTJN7 12001_ Slug penetrates Wall. 12003_ Penetrated by Slug. Map ----- +----------------------------------------------------+ | ??????????????????????????????????????????? | | ??????????????????????????????????????????? | | ??????????????????????????????????????????? | | ??????????????????????????????????????????? | | ??????????????????????????????????????????? | | ??????????????????????????????????????????? | | ??????????????????????????????????????????? | | ??????????????????????????????????????????? | | ??????????????????????????????????????????? | | ??????????????????????????????????????????? | | ??????????????????????????????????????????? | | ??????????????????????????????????????????? | | ??????????????????????????????????????????? | | ??????????????????????????????????????????? | | ??????????????????????????????????????????? | | ??????????????????????????????????????????? | | ??????????????????????????????????????????? | | ??????????????????????????????????????????? | | ??????????????????????????????????????????? | | ??????????????????????????????????????????? | | ??????????????????????????????????????????? | | ??????????????????????????????????????????? | | ???????????????????###??? #???????????????? | | ?##################;;## #####???????????? | | ?# Y ????????? | | ?# @ Y w????????? | | ?# YY ????????? | | ?##############################???????????? | | ??????????????????????????????????????????? | | ??????????????????????????????????????????? | | ??????????????????????????????????????????? | | ??????????????????????????????????????????? | | ??????????????????????????????????????????? | | ??????????????????????????????????????????? | | ??????????????????????????????????????????? | | ??????????????????????????????????????????? | | ??????????????????????????????????????????? | | ??????????????????????????????????????????? | | ??????????????????????????????????????????? | | ??????????????????????????????????????????? | | ??????????????????????????????????????????? | | ??????????????????????????????????????????? | | ??????????????????????????????????????????? | | ??????????????????????????????????????????? | | ??????????????????????????????????????????? | | ??????????????????????????????????????????? | | ??????????????????????????????????????????? | | ??????????????????????????????????????????? | | ??????????????????????????????????????????? | | ??????????????????????????????????????????? | +----------------------------------------------------+ Best States ------------- Heat Dissipation 63 Energy Generation 36 Energy Capacity 390 Matter Stores 300 Matter Capacity 300 Sight Range 16 Robot Scan Range 16 Terrain Scan Density 210 Armor Coverage 800 Evasion (%) 64 Melee Accuracy 8 Recoil Reduction 2 Offensive Hacking 52 Defensive Hacking 12 Authchip Count 1 Item Schematics ----------------- Cld. Cesium-ion Thruster | -5/Factory | Hacked Cld. VTOL Module | -5/Factory | Hacked Weapon Mount | -5/Factory | Hacked Exp. Hacking Suite | -5/Factory | Hacked Nuclear Pulse Array | -5/Factory | Hacked Adv. System Shield | -5/Factory | Hacked Exp. Propulsion Shielding | -5/Factory | Hacked Assault Drone Bay | -5/Zhirov | Free Exp. Heat Sink | -5/Zhirov | Free Exp. Optical Array | -5/Zhirov | Free Imp. Arc Thrower | -5/Zhirov | Free Tri-rail Accelerator | -4/Extension | Hacked Exp. Targeting Computer | -4/Extension | Hacked Robot Schematics ------------------ None Fabricated ------------ Cld. Cesium-ion Thruster | x1 | -5/Factory | Authchip Cld. Cesium-ion Thruster | x1 | -5/Factory | Authchip Repaired ---------- Nuclear Pulse Array | 53% | -5/Factory Studied --------- Nuclear Pulse Array | -5/Factory | Hacked Greatsword | -5/Factory | Hacked Mic. Fission Core | -4/Factory | Hacked Alien Tech Used ----------------- Integrated Dissipator Transdimensional Reconstructor Achievements -------------- None Challenges ------------ None Game ------ Seed TripodDisruptorWall Manual? 0 Play Time 01:27:20 Cumulative 186.2 hours Start 2025.11.15 @ 23:05:46 End 2025.11.16 @ 15:54:26 Sessions 7 Manual Loads 0 Difficulty Rogue Special Mode None Game No. 176 Rogue 176 Adventurer 0 Explorer 0 Win Type - Total 6 Types 5/0/1/0/0/0/0/0/0/0 Lore% 81 Gallery% 70 Achievement% 54 Wizard Run 0 Options --------- Layout 1 ASCII 0 Keyboard 1 Movement Arrows Keybinds 0 Fullscreen 1 Font 24/Smallcaps Map View 50x40 Zoom Use 0% Tactical HUD 1 Map Filters NONE Filters NONE Steam 1 RUN: 0801e29a-9732-496d-bbca-29b6fa31b431